Cogmind - Beta 13 @@@ ROGUE MODE // 2024.08.03 @ 19:37:48 Player: Daffa0360 Result: Self-destructed Performance ------------- Evolutions (2) 1000 Regions Visited (6) 1200 Robots Destroyed (8) 40 Value Destroyed (217) 217 Prototype IDs (1) 20 Alien Tech Used (0) 0 Bonus (76) 76 TOTAL SCORE: 2553 Bonus ------- Follower Combat Kills 76 Cogmind --------- Core Integrity 359/550 Matter 297/300 Energy 75/100 System Corruption 3% Temperature Cool (18) Movement Core (50) Location -8/Storage Parts ------- > --- POWER (1) -------- (None) > --- PROPULSION (2) --- (None) > --- UTILITY (6) ------ (None) > --- WEAPON (2) ------- (None) > --- INVENTORY (5) ---- Trap Scanner Recoil Stabilizer Minigun Mini Grenade Launcher Remote Datajack Peak State ------------ > --- POWER ------------ Light Deuterium Engine > --- PROPULSION ------- Titanium Leg Titanium Leg > --- UTILITY ---------- Small Storage Unit Improved Sensor Array Improved Signal Interpreter Terrain Scanner Target Analyzer System Shield > --- WEAPON ----------- Gauss Rifle Makeshift Sword > --- INVENTORY -------- Improved Hover Unit Trap Scanner Makeshift Sensor Array Recoil Stabilizer Actuator Array Minigun Mini Grenade Launcher Remote Datajack [Rating: 33] Favorites ----------- Power Micro Nuclear Core Engine Light Ion Engine Power Core Micro Nuclear Core Propulsion Hover Unit Leg Titanium Leg Wheel Compact Wheel Hover Unit Hover Unit Utility Small Storage Unit Device Terrain Scanner Storage Small Storage Unit Processor Target Analyzer Hackware System Shield Protection Light Armor Plating Weapon Light Assault Rifle Ballistic Gun Light Assault Rifle Slashing Weapon Makeshift Sword Build | -11 -10 -10 -10 -9 -8 -8 ------- Run | Yrd Mat Min Exi Min Mat Sto Slots Evolved 4 | . . . . . 4 . Power . | . . . . . . . Propulsion . | . . . . . . . Utility 4 | . . . . . 4 . Weapon . | . . . . . . . Parts Attached 32 | 6 7 . 3 3 12 1 Power 5 | 1 1 . 1 . 2 . Engine 3 | 1 1 . . . 1 . Core 2 | . . . 1 . 1 . Reactor . | . . . . . . . Propulsion 12 | 2 5 . 1 2 2 . Treads . | . . . . . . . Leg 4 | 2 . . . . 2 . Wheel 5 | . 3 . . 2 . . Hover 3 | . 2 . 1 . . . Flight . | . . . . . . . Utility 9 | 1 1 . . . 7 . Device 2 | . 1 . . . 1 . Storage 1 | 1 . . . . . . Processor 3 | . . . . . 3 . Hackware 2 | . . . . . 2 . Protection 1 | . . . . . 1 . Artifact . | . . . . . . . Weapon 6 | 2 . . 1 1 1 1 Energy Gun . | . . . . . . . Energy Cannon . | . . . . . . . Ballistic Gun 5 | 2 . . . 1 1 1 Ballistic Cannon . | . . . . . . . Launcher . | . . . . . . . Special Weapon . | . . . . . . . Impact Weapon . | . . . . . . . Slashing Weapon 1 | . . . 1 . . . Piercing Weapon . | . . . . . . . Special Melee Weapon . | . . . . . . . Unidentified Prototypes 1 | . . . . . . 1 Parts Lost 4 | . 1 . . . 2 1 Power 1 | . . . . . . 1 Propulsion 1 | . 1 . . . . . Utility 2 | . . . . . 2 . Weapon . | . . . . . . . Highest Loss Streak 1 | . 1 . . . 1 1 To Critical Strikes . | . . . . . . . Average Slot Usage (%) 91 | . 85 85 94 100 91 87 Engine 5 | . 14 14 3 . 1 7 Core 6 | . . . 10 14 7 . Leg 3 | . 14 . . . 3 16 Wheel 6 | . 9 . . 18 14 . Hover 15 | . 2 28 28 9 . . Device 12 | . 2 14 14 14 12 16 Storage 12 | . 14 14 14 14 9 8 Processor 4 | . . . . . 14 16 Hackware 2 | . . . . . 8 8 Ballistic Gun 13 | . 26 14 14 14 9 7 Slashing Weapon 7 | . . . 8 14 9 8 Naked Turns 19 | . . . . . . 19 Heaviest Build 18 | 12 13 10 15 16 18 18 Greatest Support 34 | 20 32 12 15 32 34 34 Greatest Overweight (x) 1 | . . . 1 . 1 . Average Overweight (x) . | . . . . . . . Largest Inventory Capacity 8 | 8 8 8 8 8 8 8 Average Capacity 7 | 7 8 8 8 8 8 7 Most Carried 8 | 3 6 5 8 8 8 8 Average Carried 6 | . 3 5 6 8 7 7 Final Capacity 8 | 8 8 8 8 8 8 5 Final Carried 8 | . 5 5 8 8 8 5 Class Distribution -------------------- 85% | Mutant 6% | Scavenger-Mutant 4% | Assassin 4% | Scavenger-Assassin Dominant Class ---------------- Mutant | -10/Materials Mutant | -10/Mines Mutant | -10/Exiles Mutant | -9/Mines Mutant | -8/Materials Assassin | -8/Storage Resources | -11 -10 -10 -10 -9 -8 -8 ----------- Run | Yrd Mat Min Exi Min Mat Sto Matter Collected 611 | 192 106 . 106 30 88 89 Remotely . | . . . . . . . Salvage Created 444 | . 106 . 187 . 103 48 Parts 31 | . 14 . 10 . 5 2 Haulers Intercepted . | . . . . . . . Recyclers Shooed 1 | . 1 . . . . . Parts Field Recycled . | . . . . . . . Retrieved Matter . | . . . . . . . Parts Self-Destructed . | . . . . . . . Prevented . | . . . . . . . Kills | -11 -10 -10 -10 -9 -8 -8 ------- Run | Yrd Mat Min Exi Min Mat Sto Combat Hostiles Destroyed 7 | . 4 . . . 2 1 Melee 1 | . . . . . 1 . Guns 6 | . 4 . . . 1 1 Classes Destroyed 4 | . 3 . . . 1 . Operator 1 | . 1 . . . . . Swarmer 3 | . 3 . . . . . Grunt 2 | . 1 . . . . 1 Sentry 2 | . . . . . 2 . Best Kill Streak 5 | . 5 . . . 1 1 Combat Bots Only 4 | . 4 . . . 1 1 Max Kills in Single Turn 1 | . 1 . . . 1 1 Gunslinging . | . . . . . . . Exploded . | . . . . . . . Melee 1 | . . . . . 1 . Uniques/NPCs Destroyed . | . . . . . . . Combat | -11 -10 -10 -10 -9 -8 -8 -------- Run | Yrd Mat Min Exi Min Mat Sto Hostile Shots Fired 97 | . 35 2 . . 33 27 Missed 31 | . 7 1 . . 10 13 Damage Taken 897 | . 233 15 . 67 353 229 Core 302 | . 65 15 . 31 74 117 Absorbed by Shields . | . . . . . . . Core Remaining (%) 77 | 100 . . . 55 . . Volleys Fired 45 | . 20 . 9 . 7 9 Largest 2 | . 2 . 1 . 1 1 Hottest 40 | . 40 . 20 . 28 25 Shots Fired 64 | . 40 . 9 . 7 8 Gun 64 | . 40 . 9 . 7 8 Cannon . | . . . . . . . Launcher . | . . . . . . . Special . | . . . . . . . Kinetic 64 | . 40 . 9 . 7 8 Thermal . | . . . . . . . Explosive . | . . . . . . . Electromagnetic . | . . . . . . . Robot Hit Streak 14 | . 5 . 4 . 7 14 Robot Miss Streak 6 | . 3 . 1 . 6 . Penetration Max . | . . . . . . . Secondary Targets . | . . . . . . . Shots Hit Robots 55 | . 23 . 13 . 10 9 Core Hits 20 | . 10 . 5 . 3 2 Critical Kills . | . . . . . . . Critical Parts Destroyed 1 | . . . 1 . . . Critical Strikes 3 | . . . 1 . 2 . Destroy 1 | . . . 1 . . . Sever 2 | . . . . . 2 . Melee Attacks 23 | . . . 6 . 14 3 Impact . | . . . . . . . Slashing 23 | . . . 6 . 14 3 Piercing . | . . . . . . . Sneak Attacks . | . . . . . . . Combat Hostiles . | . . . . . . . Follow-up Attacks . | . . . . . . . Damage Inflicted 1130 | . 193 . 487 . 262 188 Guns 459 | . 193 . 67 . 80 119 Cannons . | . . . . . . . Explosions . | . . . . . . . Melee 671 | . . . 420 . 182 69 Ramming . | . . . . . . . Kinetic 459 | . 193 . 67 . 80 119 Thermal . | . . . . . . . Explosive . | . . . . . . . Electromagnetic . | . . . . . . . Impact . | . . . . . . . Slashing 671 | . . . 420 . 182 69 Piercing . | . . . . . . . Highest Corruption 3 | . . . . 1 . 3 Average Corruption 1 | . . . . 1 . 2 Corruption Purged . | . . . . . . . Corruption Blocked . | . . . . . . . Effects 6 | . . . . 2 . 4 Message Errors 3 | . . . . 1 . 2 Energy Discharges 1 | . . . . . . 1 Data Loss (minor) 1 | . . . . 1 . . Weapon Failures 1 | . . . . . . 1 Overload Shots . | . . . . . . . Overflow Damage 32 | . . . 26 . . 6 Projectiles . | . . . . . . . Explosions . | . . . . . . . Melee 32 | . . . 26 . . 6 Knockbacks . | . . . . . . . Impact . | . . . . . . . Kinetic . | . . . . . . . Secondary . | . . . . . . . Self-Inflicted Damage . | . . . . . . . Shots . | . . . . . . . Rammed . | . . . . . . . Targets Rammed . | . . . . . . . Kicked . | . . . . . . . Crushed . | . . . . . . . Highest Temperature 9 | . 6 . 4 . . 9 Average Temperature 4 | . 6 . 2 . . 8 Received Heat Transfer 300 | . 12 9 . . 144 135 Siege Activations . | . . . . . . . Robots Corrupted . | . . . . . . . Combat Hostiles . | . . . . . . . Parts Fried . | . . . . . . . Impact Corruptions . | . . . . . . . Robots Melted . | . . . . . . . Combat Hostiles . | . . . . . . . Parts Melted . | . . . . . . . Heat Transferred . | . . . . . . . Parts Sabotaged . | . . . . . . . Parts Stolen . | . . . . . . . Parts Stripped . | . . . . . . . Power Chain Reactions . | . . . . . . . Alert | -11 -10 -10 -10 -9 -8 -8 ------- Run | Yrd Mat Min Exi Min Mat Sto Peak Influence 95 | . 95 81 . . 80 91 Initial 36 | . . 36 . . . 18 Average 37 | . 32 78 . . 34 49 Maximum Alert Level . | . . . . . . . Low Security (%) 100 | 100 100 100 . 100 100 100 Level 1 . | . . . . . . . Level 2 . | . . . . . . . Level 3 . | . . . . . . . Level 4 . | . . . . . . . Level 5 . | . . . . . . . High Security . | . . . . . . . Max Security . | . . . . . . . Squads Dispatched 5 | . 1 . . . 2 2 Investigation . | . . . . . . . Extermination . | . . . . . . . Reinforcement 3 | . 1 . . . 2 . Assault 2 | . . . . . . 2 Garrison . | . . . . . . . Intercept . | . . . . . . . Searches Triggered . | . . . . . . . Construction Impeded . | . . . . . . . Haulers Reinforced . | . . . . . . . Active Scanning Responses . | . . . . . . . Cargo Convoy Interrupts . | . . . . . . . Stealth | -11 -10 -10 -10 -9 -8 -8 --------- Run | Yrd Mat Min Exi Min Mat Sto Distress Signals 1 | . . . . . 1 . Communications Jammed . | . . . . . . . Distress Signals . | . . . . . . . Times Spotted 43 | . 8 2 . 3 11 19 Peak Tracking Total 14 | . 5 2 . 10 5 14 Tactical Retreats 1 | . . 1 . . . . Traps | -11 -10 -10 -10 -9 -8 -8 ------- Run | Yrd Mat Min Exi Min Mat Sto Traps Triggered 2 | . . . . . . 2 Indirectly . | . . . . . . . Trap Hack Attempts . | . . . . . . . Triggered . | . . . . . . . Disarmed . | . . . . . . . Reprogrammed . | . . . . . . . Reused . | . . . . . . . Traps Extracted . | . . . . . . . Installed . | . . . . . . . Triggered . | . . . . . . . Machines | -11 -10 -10 -10 -9 -8 -8 ---------- Run | Yrd Mat Min Exi Min Mat Sto Machines Disabled . | . . . . . . . Max in Single Turn . | . . . . . . . Machines Repaired . | . . . . . . . Machines Dismantled . | . . . . . . . Machines Sabotaged . | . . . . . . . Overloaded Fab Kills . | . . . . . . . Hacking | -11 -10 -10 -10 -9 -8 -8 --------- Run | Yrd Mat Min Exi Min Mat Sto Machines Accessed 9 | . . . 2 1 4 2 Terminals 6 | . . . . . 4 2 Fabricators . | . . . . . . . Repair Stations . | . . . . . . . Recycling Units . | . . . . . . . Scanalyzers . | . . . . . . . Garrison Access . | . . . . . . . Total Hacks 19 | . . . 2 1 12 4 Successful 8 | . . . 2 1 4 1 Failed 11 | . . . . . 8 3 Catastrophic 2 | . . . . . 2 . Database Lockouts . | . . . . . . . Manual 3 | . . . . . 3 . Terminals 16 | . . . . . 12 4 Fabricators . | . . . . . . . Repair Stations . | . . . . . . . Recycling Units . | . . . . . . . Scanalyzers . | . . . . . . . Garrison Access . | . . . . . . . Terminal Hacks 8 | . . . 2 1 4 1 Record 2 | . . . 2 . . . Open Door 2 | . . . . 1 . 1 Branch Access Points 1 | . . . . . 1 . Alert Level 1 | . . . . . 1 . Dispatch Records 1 | . . . . . 1 . Registered Components 1 | . . . . . 1 . Fabricator Hacks . | . . . . . . . Repair Station Hacks . | . . . . . . . Recycling Unit Hacks . | . . . . . . . Scanalyzer . | . . . . . . . Garrison Access Hacks . | . . . . . . . Unauthorized Hacks . | . . . . . . . Terminals . | . . . . . . . Fabricators . | . . . . . . . Repair Stations . | . . . . . . . Recycling Units . | . . . . . . . Scanalyzers . | . . . . . . . Garrison Access . | . . . . . . . Data Cores Recovered . | . . . . . . . Used . | . . . . . . . Hacking Detections 4 | . . . . . 3 1 Full Trace Events . | . . . . . . . Feedback Events . | . . . . . . . Feedback Blocked . | . . . . . . . Robot Schematics Acquired . | . . . . . . . Robots Built . | . . . . . . . Authchips . | . . . . . . . Time . | . . . . . . . Total Robot Build Rating . | . . . . . . . Part Schematics Acquired . | . . . . . . . Parts Built . | . . . . . . . Authchips . | . . . . . . . Time . | . . . . . . . Total Part Build Rating . | . . . . . . . Parts Repaired . | . . . . . . . Time . | . . . . . . . Parts Recycled . | . . . . . . . Recycled Matter . | . . . . . . . Retrieved Matter . | . . . . . . . Retrieved Components . | . . . . . . . Parts Scanalyzed . | . . . . . . . Part Schematics Acquired . | . . . . . . . Parts Damaged . | . . . . . . . Bothacking | -11 -10 -10 -10 -9 -8 -8 ------------ Run | Yrd Mat Min Exi Min Mat Sto Used RIF Installer . | . . . . . . . Robots Hacked . | . . . . . . . Non-combat . | . . . . . . . Combat . | . . . . . . . Robot Hacks Applied . | . . . . . . . Relay Couplers Released . | . . . . . . . Fabnet Peak Effective % . | . . . . . . . Robots Rewired . | . . . . . . . Allies Hacked . | . . . . . . . Hacks Repelled . | . . . . . . . Allies | -11 -10 -10 -10 -9 -8 -8 -------- Run | Yrd Mat Min Exi Min Mat Sto Total Allies 4 | . . . . 2 . 2 Largest Group 2 | . . . . 2 . 2 Highest-Rated Group 62 | . . . . 49 . 62 Highest-Rated Ally 31 | . . . . 31 . 31 Total Orders . | . . . . . . . Ally Attacks 24 | . . . . 3 . 21 Total Damage 380 | . . . . 41 . 339 Kills 2 | . . . . . . 2 Allies Corrupted . | . . . . . . . Allies Melted . | . . . . . . . Intel | -11 -10 -10 -10 -9 -8 -8 ------- Run | Yrd Mat Min Exi Min Mat Sto Robot Analysis Total . | . . . . . . . Derelict Logs Recovered 4 | . . 2 . 2 . . Drone Launches . | . . . . . . . Drone Recoveries . | . . . . . . . Exploration | -11 -10 -10 -10 -9 -8 -8 ------------- Run | Yrd Mat Min Exi Min Mat Sto Turns Passed 2203 | 84 202 347 683 295 409 183 Spaces Moved 2126 | 66 125 106 1071 322 303 133 Core 37 | 9 . . . . . 28 Treads . | . . . . . . . Legs 281 | 57 65 . . . 54 105 Wheels 438 | . 25 . . 164 249 . Hover 1370 | . 35 106 1071 158 . . Flight . | . . . . . . . Fastest Speed 50 | 50 56 56 56 56 100 50 Average Speed 74 | 110 98 56 56 78 105 113 Slowest Speed 200 | 120 120 56 116 100 200 130 Overloaded Moves . | . . . . . . . Propulsion Burnouts . | . . . . . . . Robots Hopped . | . . . . . . . Cave-ins Triggered . | . . . . . . . Exploration Rate (%) 38 | 4 24 23 93 73 34 20 Regions Visited 6 Branch Regions 4 Pre-discovered Areas . | . . . . . . . Known Exits Taken 1 | . . . . . 1 . Unknown Exits Taken 5 | 1 1 1 1 1 . . Scrap Searched 1 | . . . . 1 . . Spaces Dug 7 | . . . . . 7 . Terrain Destroyed 7 | . . . . . 7 . Melee 7 | . . . . . 7 . Projectile . | . . . . . . . AOE . | . . . . . . . Terrain Rammed . | . . . . . . . Walls Destroyed . | . . . . . . . Machines Disabled . | . . . . . . . Actions | -11 -10 -10 -10 -9 -8 -8 --------- Run | Yrd Mat Min Exi Min Mat Sto Total 2674 | 77 171 393 1141 364 371 157 Wait 401 | . 8 288 39 39 17 10 Move 2120 | 65 124 105 1070 321 302 133 Hop . | . . . . . . . Pick Up 34 | 6 9 . 9 . 10 . Fast Attach 6 | . . . . . 5 1 Attach 14 | 6 3 . 1 . 4 . Detach . | . . . . . . . Swap 12 | . 4 . 2 3 3 . Drop 19 | . 3 . 5 1 9 1 Fire 45 | . 20 . 9 . 7 9 Melee 23 | . . . 6 . 14 3 Ram . | . . . . . . . Kick . | . . . . . . . Crush . | . . . . . . . Escape Stasis . | . . . . . . . Rewire . | . . . . . . . Trap . | . . . . . . . Miscellaneous . | . . . . . . . Route ------- -11/Scrapyard -10/Materials -10/Mines -10/Exiles (discovered 2 exits: *Min x2) -9/Mines -8/Materials (discovered 3 exits: Fac / *Sto x2) -8/Storage (discovered 1 exit: Rec) History --------- Turn | Location | Event 21 | -11/Scrapyard | Discovered new exit (range 16) 85 | -11/Scrapyard | Entered Materials 282 | -10/Materials | Discovered new exit (range 9) 287 | -10/Materials | Entered Mines 290 | -10/Mines | Learned 8 Materials zone layouts 315 | -10/Mines | Build established: Mutant 618 | -10/Mines | Learned 2 Materials zone layouts 631 | -10/Mines | Deemed a non-threat by the Exiles lab entrance 631 | -10/Mines | Discovered new exit (range 5) 634 | -10/Mines | Entered Exiles 634 | -10/Exiles | Found Exiles lab destroyed 754 | -10/Exiles | Discovered new exit (range 11) 1114 | -10/Exiles | Discovered new exit (range 15) 1317 | -10/Exiles | Entered Mines 1320 | -9/Mines | Met a Derelict who couldn't figure out how to use a Trap Extractor 1328 | -9/Mines | Learned Materials garrison access intel 1414 | -9/Mines | A weapon hastily lodged in a ceiling crevice suddenly fell to the ground 1525 | -9/Mines | Discovered new exit (range 7) 1568 | -9/Mines | Assembled infested the area 1612 | -9/Mines | Entered Materials 1612 | -8/Materials | Evolved 4 slots: Utility x4 1613 | -8/Materials | Identified exit to Storage 1613 | -8/Materials | Identified exit to Factory 1614 | -8/Materials | Loaded intel: 1 garrison access location 2021 | -8/Materials | Entered Storage 2022 | -8/Storage | Identified exit to Recycling 2094 | -8/Storage | Met a pair of Derelict thieves 2185 | -8/Storage | Released all parts (10) 2204 | -8/Storage | Self-destructed Last Messages --------------- 02163_ G-50 Soldier unfolds itself. 02163_ G-47 Trooper unfolds itself. 02163_ L-31 Rogue unfolds itself. 02163_ G-47 Trooper unfolds itself. 02163_ I-25 Savior unfolds itself. 02163_ K-01 Serf collects debris. 02166_ G-47 Trooper suffers critical hit (Burn). 02166_ K-01 Serf collects debris. 02168_ Lgt. Deuterium Engine destroyed. 02177_ K-01 Serf collects debris. 02185_ Released Titanium Leg. 02185_ Released System Shield. 02185_ Released Mak. Sword. 02185_ Released Terrain Scanner. 02185_ Released Sml. Storage Unit. 02185_ Released Target Analyzer. 02185_ Released Imp. Sensor Array. 02185_ Released Imp. Signal Interpreter. 02185_ Released Enh. Autogun. 02201_ System corrupted: Energy discharge (-22). Map ----- +----------------------------------------------------+ | | | | | | | | | | | | | | | | | | | | | | | | | ???????????????#######????????????????? | | ################ ###########???#??? | | !/=![ #??????? | | !!== #?#????? | | ! #??????? | | ##########+##### ####/######??????? | | #???##? ??# ##### gg #?????#?? | | #????# """ # #???# """#???????? | | ##????# """ # #???#! % """#???????? | | ##???# """ # ##### """#??#????? | | #???## + + #???????? | | [#??#?# """ # ##### """#???????? | | [#????# """ # #???# """###?????? | | ##????# ?????# #???# @ """#???????? | | ??????# ?????# #???# #???????? | | #?????##"Y?????# #???######T###???????? | | ?????#?#"??????# #????????###?????????? | | ???????????????# #????????????????????? | | ???????????????? ?????????????????????? | | ???????????????? ?????????????????????# | | ???????????????? ?????????????????????? | | ???????????????? ?????????????????????? | | ???????#???????? ?????????????????????? | | ???????????????? ?????????????????????? | | ???????????????? ?????????????????????? | | ??????????????????????????????????????? | | ??????????????????????????????????????? | | ??????????????????????????????????????? | | ??????????????????????????????????????? | | ??????????????????????????????????????? | | ??????????????????????????????????????? | | ??????????????????????????????????????? | | ??????????????????????????????????????? | | ??????????????????????????????????????? | | ??????????????????????????????????????? | | ??????????????????????????????????????? | | ??????????????????????????????????????? | | ??????????????????????????????????????? | +----------------------------------------------------+ Best States ------------- Heat Dissipation 31 Energy Generation 15 Energy Capacity 250 Matter Stores 300 Matter Capacity 300 Sight Range 16 Robot Scan Range 15 Terrain Scan Range 14 Terrain Scan Density 10 Armor Coverage 150 Evasion (%) 55 Targeting Accuracy 5 Target Analysis 5 Offensive Hacking 10 Defensive Hacking 10 Item Schematics ----------------- None Robot Schematics ------------------ None Fabricated ------------ Nothing Alien Tech Used ----------------- None Achievements -------------- None Challenges ------------ None Game ------ Seed AssembledDisposableArchive Manual? 0 Play Time 00:24:56 Cumulative 20.6 hours Start 2024.08.03 @ 19:11:27 End 2024.08.03 @ 19:37:48 Sessions 1 Manual Loads 0 Difficulty Rogue Special Mode None Game No. 32 Rogue 28 Adventurer 4 Explorer 0 Win Type - Total 0 Types 0/0/0/0/0/0/0/0/0 Lore% 7 Gallery% 24 Achievement% 16 Wizard Run 0 Options --------- Layout 1 ASCII 0 Keyboard 0 Movement Mouse Keybinds 0 Fullscreen 2 Font 24/Smallcaps Map View 50x35 Zoom Use 0% Tactical HUD 1 Map Filters NONE Filters NONE Steam 1 RUN: ccaadd7d-91a2-4ffc-ad77-94a98b3225d0